Workbook

Sheet Luchtgeweer
A1: st. Ambrosius
A2: 2023 /2024 | C2: VERSCHIL | D2: GEMIDD. | E2: GEMIDD. | F2: 15 | G2: ALLE | H2: ONDERDEEL | AV2: aan
D3: VORIG | E3: DIT | F3: HOOGSTE | G3: WEDSTR. | H3: OPGELEGD | AV3: wezig
A4: NAAM | B4: NAAM | D4: SEIZOEN | E4: SEIZOEN | F4: PUNTEN | G4: GEMIDD. | H4: VRIJEHAND | I4: 1 | J4: 2 | K4: 3 | L4: 4 | M4: 5 | N4: 6 | O4: 7 | P4: 8 | Q4: 9 | R4: 10 | S4: 11 | T4: 12 | U4: 13 | V4: 14 | W4: 15 | X4: 16 | Y4: 17 | Z4: 18 | AA4: 19 | AB4: 20 | AC4: 21 | AD4: 22 | AE4: 23 | AF4: 24 | AG4: 25 | AH4: 26 | AI4: 27 | AJ4: 28 | AK4: 29 | AL4: 30 | AM4: 31 | AN4: 32 | AO4: 33 | AP4: 34 | AQ4: 35 | AR4: 36 | AS4: 37 | AT4: 38 | AU4: 39 | AV4: wedstr
A6: 0 | B6: 0 | C6: 0 | D6: 0 | E6: 0 | F6: 0 | G6: 0 | H6: 0 | I6: 0 | J6: 0 | K6: 0 | L6: 0 | M6: 0 | N6: 0 | O6: 0 | P6: 0 | Q6: 0 | R6: 0 | S6: 0 | T6: 0 | U6: 0 | V6: 0 | W6: 0 | X6: 0 | Y6: 0 | Z6: 0 | AA6: 0 | AB6: 0 | AC6: 0 | AD6: 0 | AE6: 0 | AF6: 0 | AG6: 0 | AH6: 0 | AI6: 0 | AJ6: 0 | AK6: 0 | AL6: 0 | AM6: 0 | AN6: 0 | AO6: 0 | AT6: 0 | AV6: 0
A7: Rudy van Falier | B7: Falier R | C7: =SUM(E7-D7) ->  | D7: 167.00 | E7: =SUM(F7/15) ->  | F7: =SUMPRODUCT(LARGE(I7:AU7,ROW(I$1:AU$15))) ->  | G7: =AVERAGE(I7:AU7) -> 157.30 | H7: vrijehand | I7: x | J7: x | K7: x | L7: 156 | M7: x | N7: x | O7: x | P7: 170 | Q7: x | R7: 172 | S7: x | T7: x | U7: x | V7: 164 | W7: x | X7: x | Y7: x | Z7: x | AA7: 155 | AB7: x | AC7: 155 | AD7: 158 | AE7: x | AF7: x | AG7: x | AH7: x | AI7: x | AJ7: x | AK7: x | AL7: x | AM7: x | AN7: 163 | AO7: x | AP7: 160 | AQ7: x | AR7: 120 | AS7: x | AT7: x | AU7: x | AV7: =COUNTIF(I7:AU7,">0") -> 10
A8: Tonnie Koks | B8: Koks T | C8: =SUM(E8-D8) -> 2.75 | D8: 168.38 | E8: =SUM(F8/15) -> 171.13 | F8: =SUMPRODUCT(LARGE(I8:AU8,ROW(I$1:AU$15))) -> 2567.00 | G8: =AVERAGE(I8:AU8) -> 165.81 | H8: vrijehand | I8: 170 | J8: 170 | K8: 160 | L8: 156 | M8: 164 | N8: 153 | O8: 164 | P8: 154 | Q8: 168 | R8: 170 | S8: 171 | T8: 150 | U8: 169 | V8: 162 | W8: 173 | X8: 168 | Y8: 165 | Z8: 174 | AA8: 158 | AB8: x | AC8: 167 | AD8: 168 | AE8: 164 | AF8: 164 | AG8: 162 | AH8: 173 | AI8: x | AJ8: 162 | AK8: 174 | AL8: 169 | AM8: 173 | AN8: 160 | AO8: 167 | AP8: 164 | AQ8: 168 | AR8: 168 | AS8: 171 | AT8: 168 | AU8: 174 | AV8: =COUNTIF(I8:AU8,">0") -> 37
A9: Leon v Kuik | B9: Kuik L | C9: =SUM(E9-D9) ->  | D9: nee | E9: =SUM(F9/15) ->  | F9: =SUMPRODUCT(LARGE(I9:AU9,ROW(I$1:AU$15))) ->  | G9: =AVERAGE(I9:AU9) -> 125.75 | H9: vrijehand | I9: x | J9: x | K9: x | L9: x | M9: x | N9: x | O9: x | P9: x | Q9: x | R9: x | S9: x | T9: 117 | U9: x | V9: x | W9: x | X9: x | Y9: x | Z9: x | AA9: x | AB9: x | AC9: x | AD9: x | AE9: x | AF9: x | AG9: x | AH9: 120 | AI9: x | AJ9: x | AK9: x | AL9: x | AM9: x | AN9: 100 | AO9: x | AP9: x | AQ9: x | AR9: x | AS9: x | AT9: 166 | AU9: x | AV9: =COUNTIF(I9:AU9,">0") -> 4
A10: Daniëlle van der Lee | B10: Lee D | C10: =SUM(E10-D10) ->  | D10: nee | E10: =SUM(F10/15) ->  | F10: =SUMPRODUCT(LARGE(I10:AU10,ROW(I$1:AU$15))) ->  | G10: =AVERAGE(I10:AU10) -> 159.17 | H10: vrijehand | I10: x | J10: 162 | K10: x | L10: x | M10: x | N10: 169 | O10: x | P10: x | Q10: x | R10: 160 | S10: x | T10: x | U10: x | V10: x | W10: x | X10: x | Y10: x | Z10: x | AA10: x | AB10: x | AC10: x | AD10: 158 | AE10: x | AF10: 156 | AG10: x | AH10: x | AI10: x | AJ10: x | AK10: x | AL10: x | AM10: x | AN10: x | AO10: x | AP10: 150 | AQ10: x | AR10: x | AS10: x | AT10: x | AU10: x | AV10: =COUNTIF(I10:AU10,">0") -> 6
A11: Wilma van de Lee | B11: Lee W | C11: =SUM(E11-D11) ->  | D11: 160.75 | E11: =SUM(F11/15) ->  | F11: =SUMPRODUCT(LARGE(I11:AU11,ROW(I$1:AU$15))) ->  | G11: =AVERAGE(I11:AU11) -> 166.00 | H11: vrijehand | I11: x | J11: x | K11: x | L11: x | M11: x | N11: x | O11: x | P11: x | Q11: x | R11: x | S11: x | T11: x | U11: x | V11: x | W11: x | X11: x | Y11: x | Z11: x | AA11: x | AB11: x | AC11: x | AD11: x | AE11: x | AF11: x | AG11: x | AH11: x | AI11: x | AJ11: x | AK11: x | AL11: x | AM11: x | AN11: x | AO11: x | AP11: x | AQ11: x | AR11: x | AS11: x | AT11: 166 | AU11: x | AV11: =COUNTIF(I11:AU11,">0") -> 1
A12: Jeroen van Oss | B12: Oss J | C12: =SUM(E12-D12) ->  | D12: nee | E12: =SUM(F12/15) -> 164.13 | F12: =SUMPRODUCT(LARGE(I12:AU12,ROW(I$1:AU$15))) -> 2462.00 | G12: =AVERAGE(I12:AU12) -> 163.44 | H12: vrijehand | I12: 157 | J12: 166 | K12: 169 | L12: 171 | M12: 168 | N12: x | O12: x | P12: 160 | Q12: x | R12: 164 | S12: x | T12: x | U12: x | V12: 153 | W12: x | X12: x | Y12: x | Z12: x | AA12: x | AB12: 159 | AC12: x | AD12: 164 | AE12: x | AF12: 169 | AG12: x | AH12: x | AI12: x | AJ12: 170 | AK12: x | AL12: 162 | AM12: x | AN12: 157 | AO12: x | AP12: 166 | AQ12: x | AR12: x | AS12: x | AT12: 160 | AU12: x | AV12: =COUNTIF(I12:AU12,">0") -> 16
A13: Justin van Son | B13: Son J | C13: =SUM(E13-D13) ->  | D13: nee | E13: =SUM(F13/15) ->  | F13: =SUMPRODUCT(LARGE(I13:AU13,ROW(I$1:AU$15))) ->  | G13: =AVERAGE(I13:AU13) -> 166.88 | H13: vrijehand | I13: x | J13: x | K13: x | L13: x | M13: x | N13: x | O13: x | P13: x | Q13: x | R13: 168 | S13: x | T13: x | U13: x | V13: x | W13: x | X13: x | Y13: x | Z13: x | AA13: x | AB13: x | AC13: x | AD13: 170 | AE13: x | AF13: x | AG13: x | AH13: x | AI13: x | AJ13: x | AK13: x | AL13: x | AM13: x | AN13: x | AO13: x | AP13: 158 | AQ13: 168 | AR13: 170 | AS13: 172 | AT13: 166 | AU13: 163 | AV13: =COUNTIF(I13:AU13,">0") -> 8
A14: Jan de Vaan | B14: Vaan J | C14: =SUM(E14-D14) -> -1.15 | D14: 169.75 | E14: =SUM(F14/15) -> 168.60 | F14: =SUMPRODUCT(LARGE(I14:AU14,ROW(I$1:AU$15))) -> 2529.00 | G14: =AVERAGE(I14:AU14) -> 163.50 | H14: vrijehand | I14: 159 | J14: 166 | K14: 162 | L14: 147 | M14: 166 | N14: 165 | O14: 173 | P14: 163 | Q14: 164 | R14: 172 | S14: 156 | T14: 166 | U14: 171 | V14: 165 | W14: 171 | X14: 168 | Y14: 162 | Z14: 165 | AA14: 166 | AB14: 163 | AC14: 166 | AD14: 170 | AE14: 157 | AF14: 159 | AG14: 174 | AH14: 156 | AI14: 162 | AJ14: 162 | AK14: 163 | AL14: 151 | AM14: 165 | AN14: 161 | AO14: 165 | AP14: 162 | AQ14: x | AR14: 153 | AS14: x | AT14: 170 | AU14: x | AV14: =COUNTIF(I14:AU14,">0") -> 36
A15: Frans van Beurden | B15: Beurden F | C15: =SUM(E15-D15) -> -0.88 | D15: 193.88 | E15: =SUM(F15/15) -> 193.00 | F15: =SUMPRODUCT(LARGE(I15:AU15,ROW(I$1:AU$15))) -> 2895.00 | G15: =AVERAGE(I15:AU15) -> 191.90 | H15: opgelegd | I15: x | J15: 192 | K15: x | L15: 193 | M15: x | N15: 191 | O15: x | P15: x | Q15: x | R15: 190 | S15: x | T15: 191 | U15: x | V15: 194 | W15: x | X15: x | Y15: 189 | Z15: x | AA15: x | AB15: 194 | AC15: x | AD15: 194 | AE15: x | AF15: 188 | AG15: x | AH15: 190 | AI15: x | AJ15: x | AK15: x | AL15: 193 | AM15: 192 | AN15: 195 | AO15: 191 | AP15: 188 | AQ15: 195 | AR15: 195 | AS15: x | AT15: 188 | AU15: 195 | AV15: =COUNTIF(I15:AU15,">0") -> 20
A16: Gerard van Beurden | B16: Beurden G | C16: =SUM(E16-D16) ->  | D16: nee | E16: =SUM(F16/15) -> 194.00 | F16: =SUMPRODUCT(LARGE(I16:AU16,ROW(I$1:AU$15))) -> 2910.00 | G16: =AVERAGE(I16:AU16) -> 190.12 | H16: opgelegd | I16: x | J16: x | K16: 189 | L16: 193 | M16: 193 | N16: 185 | O16: 188 | P16: 182 | Q16: 183 | R16: 186 | S16: 184 | T16: 187 | U16: 189 | V16: 183 | W16: x | X16: 187 | Y16: 193 | Z16: 193 | AA16: 194 | AB16: 196 | AC16: 192 | AD16: 194 | AE16: 191 | AF16: x | AG16: 192 | AH16: 188 | AI16: 185 | AJ16: 194 | AK16: 194 | AL16: 193 | AM16: 188 | AN16: 198 | AO16: 193 | AP16: 196 | AQ16: 189 | AR16: x | AS16: 194 | AT16: 188 | AU16: x | AV16: =COUNTIF(I16:AU16,">0") -> 33
A17: Wim de Gouw | B17: Gouw W | C17: =SUM(E17-D17) -> -0.03 | D17: 192.63 | E17: =SUM(F17/15) -> 192.60 | F17: =SUMPRODUCT(LARGE(I17:AU17,ROW(I$1:AU$15))) -> 2889.00 | G17: =AVERAGE(I17:AU17) -> 189.23 | H17: opgelegd | I17: 193 | J17: 182 | K17: 186 | L17: 188 | M17: 183 | N17: 192 | O17: 190 | P17: 189 | Q17: 191 | R17: 190 | S17: 186 | T17: 187 | U17: 192 | V17: 186 | W17: 185 | X17: 186 | Y17: 193 | Z17: 191 | AA17: 181 | AB17: 191 | AC17: 188 | AD17: 190 | AE17: 189 | AF17: 188 | AG17: 185 | AH17: 184 | AI17: 189 | AJ17: 191 | AK17: 189 | AL17: 193 | AM17: 195 | AN17: 193 | AO17: 196 | AP17: 190 | AQ17: 192 | AR17: 190 | AS17: 193 | AT17: 190 | AU17: 193 | AV17: =COUNTIF(I17:AU17,">0") -> 39
A18: Dorien de Kort | B18: Kort D | C18: =SUM(E18-D18) ->  | D18: nee | E18: =SUM(F18/15) -> 184.47 | F18: =SUMPRODUCT(LARGE(I18:AU18,ROW(I$1:AU$15))) -> 2767.00 | G18: =AVERAGE(I18:AU18) -> 177.75 | H18: opgelegd | I18: 133 | J18: 177 | K18: 174 | L18: 168 | M18: 171 | N18: 177 | O18: x | P18: 176 | Q18: 170 | R18: 184 | S18: x | T18: x | U18: 176 | V18: 167 | W18: x | X18: 182 | Y18: 187 | Z18: 174 | AA18: 184 | AB18: 178 | AC18: 172 | AD18: x | AE18: x | AF18: x | AG18: 183 | AH18: 182 | AI18: 178 | AJ18: 189 | AK18: 182 | AL18: 185 | AM18: 178 | AN18: 189 | AO18: 183 | AP18: 188 | AQ18: 186 | AR18: 180 | AS18: 174 | AT18: 178 | AU18: 183 | AV18: =COUNTIF(I18:AU18,">0") -> 32
A19: Frans Mommersteeg | B19: Mommersteeg F | C19: =SUM(E19-D19) -> -0.80 | D19: 194.00 | E19: =SUM(F19/15) -> 193.20 | F19: =SUMPRODUCT(LARGE(I19:AU19,ROW(I$1:AU$15))) -> 2898.00 | G19: =AVERAGE(I19:AU19) -> 190.71 | H19: opgelegd | I19: 193 | J19: 192 | K19: 190 | L19: 192 | M19: x | N19: 192 | O19: x | P19: 191 | Q19: 194 | R19: 192 | S19: 195 | T19: x | U19: x | V19: 196 | W19: x | X19: 185 | Y19: 187 | Z19: x | AA19: 188 | AB19: 187 | AC19: 180 | AD19: 196 | AE19: 188 | AF19: 192 | AG19: 188 | AH19: x | AI19: 193 | AJ19: x | AK19: 193 | AL19: 191 | AM19: 189 | AN19: 194 | AO19: 192 | AP19: 190 | AQ19: 192 | AR19: 189 | AS19: 191 | AT19: 188 | AU19: 192 | AV19: =COUNTIF(I19:AU19,">0") -> 31
A20: Francien v/d Wiel | B20: Wiel F | C20: =SUM(E20-D20) -> -3.23 | D20: 188.50 | E20: =SUM(F20/15) -> 185.27 | F20: =SUMPRODUCT(LARGE(I20:AU20,ROW(I$1:AU$15))) -> 2779.00 | G20: =AVERAGE(I20:AU20) -> 180.62 | H20: opgelegd | I20: x | J20: 168 | K20: 168 | L20: 180 | M20: x | N20: 186 | O20: x | P20: 186 | Q20: x | R20: 192 | S20: x | T20: 185 | U20: x | V20: x | W20: 181 | X20: x | Y20: 181 | Z20: x | AA20: 184 | AB20: 189 | AC20: 173 | AD20: 174 | AE20: 181 | AF20: 186 | AG20: 186 | AH20: 169 | AI20: 182 | AJ20: x | AK20: 184 | AL20: 184 | AM20: 178 | AN20: 187 | AO20: 182 | AP20: 184 | AQ20: 175 | AR20: 182 | AS20: 177 | AT20: 174 | AU20: 180 | AV20: =COUNTIF(I20:AU20,">0") -> 29
C21: =SUM(E21-D21) ->  | E21: =SUM(F21/8) ->  | F21: =SUMPRODUCT(LARGE(I21:AU21,ROW(I$1:AU$8))) ->  | G21: =AVERAGE(I21:AU21) ->  | AV21: =COUNTIF(I21:AU21,">0") -> 0
E22: =SUM(F22/8) ->  | F22: =SUMPRODUCT(LARGE(I22:AU22,ROW(I$1:AU$8))) ->  | AV22: 0
A24: Om in het Eindklassement mee te tellen moeten er minimaal 15 series geschoten zijn. | I24: Indien geen gemiddelde, word volgend seizoen het gemiddelde van de hoogste 15 geschoten wedstrijden van dit seizoen genomen
A25: De winnaar is diegene die de meeste vooruitgang heeft geboekt ten opzichte van het gemiddelde van vorig seizoen, dit over de 15 hoogst geschoten wedstrijden | I25: 65+ voor aanvang 5e wedstrijddag kiezen voor opgelegd of vrije-hand
A26: Geschoten word op woensdag avond en op zondag morgen. Ook op feestdagen i.o.l. met luchtgeweer commissie. Inhalen niet geschoten wedstrijden mag. | I26: De 4 OVLB wedstrijden tellen verplicht mee. Hier voor wordt het aantal geschoten punten verdubbeld.
